[Event "*** Titled Tuesday Blitz"]
[Site "Chess.com"]
[Date "2021.02.09"]
[Round "7"]
[White "GMJustin"]
[Black "mjray79"]
[Result "1-0"]
[WhiteElo "2291"]
[BlackElo "2475"]
[TimeControl "180+1"]
[EndTime "11:19:14 PST"]
[Termination "GMJustin won by checkmate"]

1. d4 {[%clk 0:02:54.7]} 1... Nf6 {[%clk 0:02:59.6]} 2. c4 {[%clk 0:02:54.3]}
2... g6 {[%clk 0:03:00]} 3. Nc3 {[%clk 0:02:49.6]} 3... Bg7 {[%clk 0:02:59.9]}
4. e4 {[%clk 0:02:47.9]} 4... d6 {[%clk 0:03:00.2]} 5. f4 {[%clk 0:02:40.4]}
5... O-O {[%clk 0:02:59.8]} 6. Nf3 {[%clk 0:02:40]} 6... c5 {[%clk 0:02:59.9]}
7. d5 {[%clk 0:02:35.3]} 7... e6 {[%clk 0:03:00.2]} 8. dxe6 {[%clk 0:02:34.6]}
8... Bxe6 {[%clk 0:02:58.5]} 9. Bd3 {[%clk 0:02:31.2]} 9... Nc6 {[%clk
0:02:57.7]} 10. f5 {[%clk 0:02:21.8]} 10... Bd7 {[%clk 0:02:53.2]} 11. O-O
{[%clk 0:02:19.5]} 11... a6 {[%clk 0:02:49.7]} 12. h3 {[%clk 0:02:05.6]} 12...
Ne5 {[%clk 0:02:42.2]} 13. Nxe5 {[%clk 0:01:57.4]} 13... dxe5 {[%clk 0:02:43.1]}
14. g4 {[%clk 0:01:56.1]} 14... Bc6 {[%clk 0:02:38.5]} 15. g5 {[%clk 0:01:49.4]}
15... Qd4+ {[%clk 0:02:38.1]} 16. Kh2 {[%clk 0:01:41.4]} 16... Nh5 {[%clk
0:02:12.6]} 17. f6 {[%clk 0:01:40.4]} 17... Rfd8 {[%clk 0:02:12.6]} 18. Nd5
{[%clk 0:01:37.1]} 18... Bxd5 {[%clk 0:02:08.3]} 19. cxd5 {[%clk 0:01:29.6]}
19... Bf8 {[%clk 0:02:07.2]} 20. Qe2 {[%clk 0:01:08.9]} 20... Nf4 {[%clk
0:01:58.3]} 21. Rxf4 {[%clk 0:00:36.8]} 21... exf4 {[%clk 0:01:59.2]} 22. Bxf4
{[%clk 0:00:36.5]} 22... Bd6 {[%clk 0:01:50.6]} 23. Bxd6 {[%clk 0:00:32.7]}
23... Rxd6 {[%clk 0:01:51.5]} 24. Qf3 {[%clk 0:00:26.4]} 24... Qxb2+ {[%clk
0:01:43.7]} 25. Be2 {[%clk 0:00:14.3]} 25... Qe5+ {[%clk 0:01:13.8]} 26. Qg3
{[%clk 0:00:12.8]} 26... Re8 {[%clk 0:01:04.2]} 27. Bf3 {[%clk 0:00:08.1]} 27...
Qxa1 {[%clk 0:00:59.9]} 28. Qxd6 {[%clk 0:00:07.6]} 28... Qxa2+ {[%clk
0:00:55.1]} 29. Bg2 {[%clk 0:00:06.4]} 29... Qd2 {[%clk 0:00:49.3]} 30. Qg3
{[%clk 0:00:04.5]} 30... h5 {[%clk 0:00:44.4]} 31. e5 {[%clk 0:00:04.3]} 31...
c4 {[%clk 0:00:40.5]} 32. e6 {[%clk 0:00:03.9]} 32... fxe6 {[%clk 0:00:18.9]}
33. Qc7 {[%clk 0:00:02.7]} 33... Re7 {[%clk 0:00:15.2]} 34. Qxe7 {[%clk
0:00:02.6]} 34... Qf4+ {[%clk 0:00:15.3]} 35. Kh1 {[%clk 0:00:02.9]} 35... Qc1+
{[%clk 0:00:15.1]} 36. Kh2 {[%clk 0:00:03.3]} 36... Qf4+ {[%clk 0:00:15]} 37.
Kg1 {[%clk 0:00:03.7]} 37... Qe3+ {[%clk 0:00:14.1]} 38. Kf1 {[%clk 0:00:04]}
38... Qc1+ {[%clk 0:00:14]} 39. Ke2 {[%clk 0:00:03.7]} 39... Qc2+ {[%clk
0:00:13]} 40. Ke3 {[%clk 0:00:03.8]} 40... Qd3+ {[%clk 0:00:12.3]} 41. Kf4
{[%clk 0:00:03.9]} 41... Qd4+ {[%clk 0:00:12.6]} 42. Kf3 {[%clk 0:00:03.8]}
42... Qxd5+ {[%clk 0:00:12.3]} 43. Kf2 {[%clk 0:00:03.8]} 43... Qd4+ {[%clk
0:00:11.2]} 44. Kf1 {[%clk 0:00:04.2]} 44... Qf4+ {[%clk 0:00:10.8]} 45. Ke2
{[%clk 0:00:02.8]} 45... Qe5+ {[%clk 0:00:09.3]} 46. Kd2 {[%clk 0:00:02.6]}
46... Qxg5+ {[%clk 0:00:09.1]} 47. Kc3 {[%clk 0:00:02.5]} 47... Qg3+ {[%clk
0:00:05.6]} 48. Kxc4 {[%clk 0:00:02.7]} 48... b5+ {[%clk 0:00:05.8]} 49. Kc5
{[%clk 0:00:02.3]} 49... Qa3+ {[%clk 0:00:05.4]} 50. Kc6 {[%clk 0:00:02.2]}
50... Qc3+ {[%clk 0:00:04.4]} 51. Kb6 {[%clk 0:00:02.3]} 51... Qd4+ {[%clk
0:00:04.4]} 52. Kb7 {[%clk 0:00:02.6]} 52... Qd5+ {[%clk 0:00:03.6]} 53. Bxd5
{[%clk 0:00:01.8]} 53... exd5 {[%clk 0:00:04.5]} 54. Qg7# {[%clk 0:00:01.7]} 1-0

[Event "*** Titled Tuesday Blitz"]
[Site "Chess.com"]
[Date "2021.02.09"]
[Round "7"]
[White "Gloomy_Wanderer"]
[Black "Zhigalko_Sergei"]
[Result "1/2-1/2"]
[WhiteElo "2737"]
[BlackElo "2893"]
[TimeControl "180+1"]
[EndTime "11:19:16 PST"]
[Termination "Game drawn by repetition"]

1. Nf3 {[%clk 0:03:00.9]} 1... d5 {[%clk 0:02:55.2]} 2. c4 {[%clk 0:03:00.9]}
2... d4 {[%clk 0:02:54.9]} 3. b4 {[%clk 0:03:00.9]} 3... Bg4 {[%clk 0:02:54.2]}
4. Qb3 {[%clk 0:02:58.7]} 4... Nf6 {[%clk 0:02:54.3]} 5. g3 {[%clk 0:02:57.6]}
5... e6 {[%clk 0:02:42.8]} 6. Bg2 {[%clk 0:02:54.3]} 6... c6 {[%clk 0:02:42.3]}
7. O-O {[%clk 0:02:34]} 7... Be7 {[%clk 0:02:32.8]} 8. Bb2 {[%clk 0:02:16]} 8...
Bxf3 {[%clk 0:02:23.7]} 9. Bxf3 {[%clk 0:02:16.9]} 9... O-O {[%clk 0:02:23.4]}
10. d3 {[%clk 0:02:17.2]} 10... a5 {[%clk 0:02:14.4]} 11. b5 {[%clk 0:02:14.9]}
11... a4 {[%clk 0:02:10.8]} 12. Qc2 {[%clk 0:02:08.9]} 12... cxb5 {[%clk
0:01:57]} 13. cxb5 {[%clk 0:02:02.7]} 13... a3 {[%clk 0:01:55.8]} 14. Bc1 {[%clk
0:01:58.2]} 14... Qb6 {[%clk 0:01:56.4]} 15. Nd2 {[%clk 0:01:57]} 15... Nd5
{[%clk 0:01:49.2]} 16. Rb1 {[%clk 0:01:33.7]} 16... Nc3 {[%clk 0:01:45.6]} 17.
Rb3 {[%clk 0:01:30.8]} 17... Nd7 {[%clk 0:01:21.2]} 18. Nc4 {[%clk 0:01:24.8]}
18... Qc7 {[%clk 0:01:21.6]} 19. b6 {[%clk 0:01:16.2]} 19... Qb8 {[%clk
0:01:17.8]} 20. Bxa3 {[%clk 0:00:56.9]} 20... Bxa3 {[%clk 0:01:17.1]} 21. Rxa3
{[%clk 0:00:53.5]} 21... Rxa3 {[%clk 0:01:16]} 22. Nxa3 {[%clk 0:00:54.4]} 22...
Nxb6 {[%clk 0:01:15.1]} 23. Qb3 {[%clk 0:00:52.5]} 23... Nbd5 {[%clk 0:01:12.3]}
24. Nb5 {[%clk 0:00:47.2]} 24... Rc8 {[%clk 0:01:06.8]} 25. Nxd4 {[%clk
0:00:44.7]} 25... Qa7 {[%clk 0:00:58.2]} 26. Nb5 {[%clk 0:00:36.9]} 26... Nxb5
{[%clk 0:00:58.6]} 27. Qxb5 {[%clk 0:00:37.8]} 27... Qxa2 {[%clk 0:00:53.3]} 28.
Qxb7 {[%clk 0:00:34]} 28... Rd8 {[%clk 0:00:53.6]} 29. Bxd5 {[%clk 0:00:22.4]}
29... Qxd5 {[%clk 0:00:52.6]} 30. Qxd5 {[%clk 0:00:22.3]} 30... Rxd5 {[%clk
0:00:53.5]} 31. Rc1 {[%clk 0:00:22.3]} 31... g6 {[%clk 0:00:53.6]} 32. Kg2
{[%clk 0:00:22.9]} 32... h5 {[%clk 0:00:53.8]} 33. Rc3 {[%clk 0:00:21.1]} 33...
Re5 {[%clk 0:00:53.5]} 34. e3 {[%clk 0:00:21.2]} 34... Ra5 {[%clk 0:00:53.7]}
35. h3 {[%clk 0:00:18.8]} 35... Ra2 {[%clk 0:00:53.9]} 36. Kf3 {[%clk 0:00:19]}
36... Kg7 {[%clk 0:00:53.8]} 37. g4 {[%clk 0:00:17.6]} 37... hxg4+ {[%clk
0:00:54.7]} 38. hxg4 {[%clk 0:00:18.5]} 38... Kf6 {[%clk 0:00:53.7]} 39. Rc5
{[%clk 0:00:18.2]} 39... g5 {[%clk 0:00:48.9]} 40. d4 {[%clk 0:00:17.1]} 40...
Rb2 {[%clk 0:00:48.4]} 41. Kg3 {[%clk 0:00:15.4]} 41... Rb1 {[%clk 0:00:48]} 42.
Re5 {[%clk 0:00:15.3]} 42... Rg1+ {[%clk 0:00:47.4]} 43. Kh3 {[%clk 0:00:15.8]}
43... Ra1 {[%clk 0:00:48.3]} 44. Kg2 {[%clk 0:00:15.6]} 44... Rb1 {[%clk
0:00:48.3]} 45. f3 {[%clk 0:00:14.6]} 45... Rd1 {[%clk 0:00:46.1]} 46. Kg3
{[%clk 0:00:14.3]} 46... Rg1+ {[%clk 0:00:45.9]} 47. Kf2 {[%clk 0:00:14.8]}
47... Rd1 {[%clk 0:00:46.8]} 48. Rc5 {[%clk 0:00:13.3]} 48... Ra1 {[%clk
0:00:45.2]} 49. Rc2 {[%clk 0:00:12.8]} 49... Rb1 {[%clk 0:00:45.2]} 50. Rd2
{[%clk 0:00:13]} 50... Ra1 {[%clk 0:00:43.5]} 51. e4 {[%clk 0:00:12.2]} 51...
Ra3 {[%clk 0:00:42.3]} 52. Ke2 {[%clk 0:00:08.2]} 52... Ke7 {[%clk 0:00:39.6]}
53. Rd3 {[%clk 0:00:08.4]} 53... Ra1 {[%clk 0:00:39]} 54. Ke3 {[%clk 0:00:08.9]}
54... Re1+ {[%clk 0:00:35.3]} 55. Kf2 {[%clk 0:00:09.2]} 55... Ra1 {[%clk
0:00:36.2]} 56. d5 {[%clk 0:00:07.7]} 56... exd5 {[%clk 0:00:37.1]} 57. Rxd5
{[%clk 0:00:05.2]} 57... Kf6 {[%clk 0:00:37.5]} 58. Rd6+ {[%clk 0:00:03.7]}
58... Ke5 {[%clk 0:00:30.1]} 59. Rd5+ {[%clk 0:00:04.6]} 59... Kf6 {[%clk
0:00:30.2]} 60. Rd6+ {[%clk 0:00:05]} 60... Ke5 {[%clk 0:00:30.5]} 61. Rd5+
{[%clk 0:00:03.6]} 61... Kf6 {[%clk 0:00:30.7]} 1/2-1/2

[Event "*** Titled Tuesday Blitz"]
[Site "Chess.com"]
[Date "2021.02.09"]
[Round "7"]
[White "zimmm36"]
[Black "TeukkaSalama"]
[Result "1-0"]
[WhiteElo "2243"]
[BlackElo "2379"]
[TimeControl "180+1"]
[EndTime "11:19:16 PST"]
[Termination "zimmm36 won by resignation"]

1. d4 {[%clk 0:03:00.9]} 1... d6 {[%clk 0:02:59.5]} 2. c4 {[%clk 0:03:00.5]}
2... e5 {[%clk 0:02:58.7]} 3. Nf3 {[%clk 0:02:52.3]} 3... Nd7 {[%clk 0:02:57.7]}
4. e4 {[%clk 0:02:50.3]} 4... Ngf6 {[%clk 0:02:57.8]} 5. Nc3 {[%clk 0:02:49.9]}
5... Be7 {[%clk 0:02:58.3]} 6. Be2 {[%clk 0:02:49.5]} 6... O-O {[%clk
0:02:58.9]} 7. O-O {[%clk 0:02:49]} 7... c6 {[%clk 0:02:59.6]} 8. Bg5 {[%clk
0:02:48.1]} 8... a6 {[%clk 0:02:57.1]} 9. Bxf6 {[%clk 0:02:48]} 9... Bxf6 {[%clk
0:02:56.7]} 10. dxe5 {[%clk 0:02:48.6]} 10... dxe5 {[%clk 0:02:54.1]} 11. b4
{[%clk 0:02:44]} 11... b5 {[%clk 0:02:38.5]} 12. cxb5 {[%clk 0:02:43.2]} 12...
axb5 {[%clk 0:02:25.4]} 13. a4 {[%clk 0:02:41.2]} 13... bxa4 {[%clk 0:02:20.1]}
14. Rxa4 {[%clk 0:02:42.1]} 14... Rb8 {[%clk 0:02:12.6]} 15. Qc2 {[%clk
0:02:31.7]} 15... Nb6 {[%clk 0:02:08.2]} 16. Ra7 {[%clk 0:02:29.9]} 16... Be6
{[%clk 0:02:03.5]} 17. Rd1 {[%clk 0:02:29.2]} 17... Qc8 {[%clk 0:01:58.5]} 18.
Na4 {[%clk 0:02:20.7]} 18... Nxa4 {[%clk 0:01:13.6]} 19. Qxa4 {[%clk 0:02:21.6]}
19... Rb7 {[%clk 0:01:08.5]} 20. Ra1 {[%clk 0:02:10.6]} 20... Qc7 {[%clk
0:00:59.8]} 21. Qa6 {[%clk 0:02:03.8]} 21... Rxa7 {[%clk 0:00:47.8]} 22. Qxa7
{[%clk 0:02:02.5]} 22... Qd6 {[%clk 0:00:47.8]} 23. Rb1 {[%clk 0:01:43.7]} 23...
g6 {[%clk 0:00:39]} 24. Qa6 {[%clk 0:01:39.8]} 24... Rd8 {[%clk 0:00:34.2]} 25.
h3 {[%clk 0:01:36.3]} 25... h5 {[%clk 0:00:32.7]} 26. Qb6 {[%clk 0:01:30.4]}
26... Rb8 {[%clk 0:00:31]} 27. Qa5 {[%clk 0:01:28.2]} 27... Be7 {[%clk
0:00:29.5]} 28. Qxe5 {[%clk 0:01:24.3]} 28... Rxb4 {[%clk 0:00:22.8]} 29. Rxb4
{[%clk 0:01:20.5]} 29... Qxb4 {[%clk 0:00:22]} 30. Nd4 {[%clk 0:00:33.6]} 30...
Bd6 {[%clk 0:00:17.6]} 31. Qf6 {[%clk 0:00:33]} 31... Qb1+ {[%clk 0:00:10.3]}
32. Bf1 {[%clk 0:00:32.4]} 32... Bc4 {[%clk 0:00:06.7]} 33. Qxd6 {[%clk
0:00:30.4]} 33... Qxf1+ {[%clk 0:00:06.1]} 34. Kh2 {[%clk 0:00:30.8]} 34... Qxf2
{[%clk 0:00:06.2]} 35. Nxc6 {[%clk 0:00:26.7]} 35... Bf1 {[%clk 0:00:04.3]} 36.
Qg3 {[%clk 0:00:25.5]} 36... Qxg3+ {[%clk 0:00:02.9]} 37. Kxg3 {[%clk
0:00:26.4]} 37... Kg7 {[%clk 0:00:02.7]} 38. Nd4 {[%clk 0:00:27.3]} 38... Kf6
{[%clk 0:00:03.1]} 39. Kf3 {[%clk 0:00:27.7]} 39... Ba6 {[%clk 0:00:03.7]} 40.
Nc2 {[%clk 0:00:26.1]} 40... Bc8 {[%clk 0:00:04.3]} 41. Ne3 {[%clk 0:00:27]}
41... Be6 {[%clk 0:00:05.1]} 42. Kf4 {[%clk 0:00:26.1]} 42... g5+ {[%clk
0:00:04.9]} 43. Kf3 {[%clk 0:00:26.7]} 43... Ke5 {[%clk 0:00:05.3]} 44. Nf1
{[%clk 0:00:21]} 44... Bd7 {[%clk 0:00:04.9]} 45. Nd2 {[%clk 0:00:20.2]} 45...
Bc6 {[%clk 0:00:05.1]} 46. Ke3 {[%clk 0:00:20.3]} 46... f5 {[%clk 0:00:03.3]}
47. Nf3+ {[%clk 0:00:20.3]} 47... Kf6 {[%clk 0:00:02.9]} 48. e5+ {[%clk
0:00:20.7]} 48... Kg6 {[%clk 0:00:02.8]} 49. Kd4 {[%clk 0:00:21]} 49... Bxf3
{[%clk 0:00:02.9]} 50. gxf3 {[%clk 0:00:21]} 50... g4 {[%clk 0:00:03.5]} 51.
fxg4 {[%clk 0:00:21]} 51... fxg4 {[%clk 0:00:04.1]} 52. hxg4 {[%clk 0:00:21.3]}
52... h4 {[%clk 0:00:04]} 53. Ke3 {[%clk 0:00:22.2]} 53... Kg5 {[%clk
0:00:03.8]} 54. Kf2 {[%clk 0:00:20.1]} 54... Kg6 {[%clk 0:00:01.7]} 55. Kg2
{[%clk 0:00:20]} 55... Kg5 {[%clk 0:00:02.1]} 56. Kh3 {[%clk 0:00:19.9]} 56...
Kf4 {[%clk 0:00:02.6]} 57. e6 {[%clk 0:00:19.2]} 57... Kg5 {[%clk 0:00:03]} 58.
e7 {[%clk 0:00:20.1]} 1-0

[Event "*** Titled Tuesday Blitz"]
[Site "Chess.com"]
[Date "2021.02.09"]
[Round "7"]
[White "albi1999"]
[Black "DvaHrasta"]
[Result "1-0"]
[WhiteElo "2627"]
[BlackElo "2422"]
[TimeControl "180+1"]
[EndTime "11:19:18 PST"]
[Termination "albi1999 won on time"]

1. d4 {[%clk 0:02:44.6]} 1... Nf6 {[%clk 0:02:59]} 2. Bg5 {[%clk 0:02:35.7]}
2... c5 {[%clk 0:02:58.3]} 3. Nc3 {[%clk 0:02:30.8]} 3... cxd4 {[%clk
0:02:55.3]} 4. Qxd4 {[%clk 0:02:31.7]} 4... Nc6 {[%clk 0:02:54.9]} 5. Qh4 {[%clk
0:02:31]} 5... h6 {[%clk 0:02:55.1]} 6. O-O-O {[%clk 0:02:23.7]} 6... hxg5
{[%clk 0:02:55.1]} 7. Qxh8 {[%clk 0:02:17]} 7... d6 {[%clk 0:02:48.4]} 8. e4
{[%clk 0:02:09.7]} 8... Be6 {[%clk 0:02:46.3]} 9. Nf3 {[%clk 0:02:08.6]} 9...
Qa5 {[%clk 0:02:45]} 10. Kb1 {[%clk 0:02:06]} 10... Rc8 {[%clk 0:02:36.5]} 11.
a3 {[%clk 0:01:48.7]} 11... a6 {[%clk 0:02:35]} 12. h4 {[%clk 0:01:45.2]} 12...
g4 {[%clk 0:02:22.1]} 13. Ng5 {[%clk 0:01:24]} 13... b5 {[%clk 0:02:20.9]} 14.
Nxe6 {[%clk 0:01:23.1]} 14... fxe6 {[%clk 0:02:20.8]} 15. Bd3 {[%clk 0:01:00.8]}
15... b4 {[%clk 0:02:17.3]} 16. axb4 {[%clk 0:01:01.7]} 16... Nxb4 {[%clk
0:02:12.4]} 17. h5 {[%clk 0:00:54.9]} 17... e5 {[%clk 0:01:57.2]} 18. h6 {[%clk
0:00:51.9]} 18... gxh6 {[%clk 0:01:48.1]} 19. Rxh6 {[%clk 0:00:49.4]} 19... Rxc3
{[%clk 0:01:25.5]} 20. bxc3 {[%clk 0:00:50.3]} 20... Na2 {[%clk 0:01:25]} 21.
Rxf6 {[%clk 0:00:41.5]} 21... Nxc3+ {[%clk 0:01:18.6]} 22. Kc1 {[%clk
0:00:41.8]} 22... Qa1+ {[%clk 0:00:44.1]} 23. Kd2 {[%clk 0:00:40.9]} 23... Qxd1+
{[%clk 0:00:43.9]} 24. Kxc3 {[%clk 0:00:40.9]} 24... exf6 {[%clk 0:00:44]} 25.
Qxf6 {[%clk 0:00:36.3]} 25... Qe1+ {[%clk 0:00:39.8]} 26. Kc4 {[%clk 0:00:23.3]}
26... Qa5 {[%clk 0:00:36.6]} 27. Qe6+ {[%clk 0:00:22.3]} 27... Kd8 {[%clk
0:00:33.9]} 28. Qd5 {[%clk 0:00:22]} 28... Qa2+ {[%clk 0:00:29.4]} 29. Kb4
{[%clk 0:00:19.2]} 29... Qxd5 {[%clk 0:00:27]} 30. exd5 {[%clk 0:00:20.1]} 30...
g3 {[%clk 0:00:26.2]} 31. fxg3 {[%clk 0:00:17.3]} 31... Ke7 {[%clk 0:00:17.9]}
32. Bxa6 {[%clk 0:00:17.1]} 32... Kf6 {[%clk 0:00:18]} 33. Kc4 {[%clk
0:00:15.9]} 33... Kf5 {[%clk 0:00:16.5]} 34. Bc8+ {[%clk 0:00:14]} 34... Ke4
{[%clk 0:00:15.3]} 35. Bg4 {[%clk 0:00:13.7]} 35... Be7 {[%clk 0:00:09.9]} 36.
Bf3+ {[%clk 0:00:10.8]} 36... Ke3 {[%clk 0:00:10.1]} 37. Kb5 {[%clk 0:00:10.7]}
37... e4 {[%clk 0:00:09.8]} 38. Bh5 {[%clk 0:00:10.8]} 38... Kd4 {[%clk
0:00:08.4]} 39. c4 {[%clk 0:00:10.7]} 39... e3 {[%clk 0:00:08.2]} 40. Be2 {[%clk
0:00:10.2]} 40... Kc3 {[%clk 0:00:08.1]} 41. Kc6 {[%clk 0:00:08.7]} 41... Kd2
{[%clk 0:00:07.5]} 42. Bh5 {[%clk 0:00:09.2]} 42... e2 {[%clk 0:00:05.9]} 43.
Bxe2 {[%clk 0:00:08.7]} 43... Kxe2 {[%clk 0:00:06.2]} 44. g4 {[%clk 0:00:09]}
44... Kd3 {[%clk 0:00:04.6]} 45. Kd7 {[%clk 0:00:05.1]} 45... Bf8 {[%clk
0:00:04.5]} 46. Ke8 {[%clk 0:00:04.5]} 46... Bh6 {[%clk 0:00:04.4]} 47. Ke7
{[%clk 0:00:04.8]} 47... Bf4 {[%clk 0:00:03.9]} 48. g5 {[%clk 0:00:02.4]} 48...
Kxc4 {[%clk 0:00:03.9]} 49. g6 {[%clk 0:00:02.9]} 49... Bh6 {[%clk 0:00:02.6]}
50. Kxd6 {[%clk 0:00:03.4]} 50... Bg7 {[%clk 0:00:02.2]} 51. Kc6 {[%clk
0:00:03.5]} 1-0

[Event "*** Titled Tuesday Blitz"]
[Site "Chess.com"]
[Date "2021.02.09"]
[Round "7"]
[White "Aygehovit1992"]
[Black "Kotofeyca"]
[Result "1/2-1/2"]
[WhiteElo "2606"]
[BlackElo "2446"]
[TimeControl "180+1"]
[EndTime "11:19:18 PST"]
[Termination "Game drawn by repetition"]

1. e4 {[%clk 0:02:32.6]} 1... c5 {[%clk 0:02:57.8]} 2. Be2 {[%clk 0:02:30.1]}
2... Nc6 {[%clk 0:02:56.5]} 3. f4 {[%clk 0:02:30.1]} 3... g6 {[%clk 0:02:55.2]}
4. Nf3 {[%clk 0:02:30.4]} 4... Bg7 {[%clk 0:02:55.8]} 5. Nc3 {[%clk 0:02:30.1]}
5... e6 {[%clk 0:02:54.4]} 6. d3 {[%clk 0:02:30.4]} 6... d5 {[%clk 0:02:51.9]}
7. O-O {[%clk 0:02:26.7]} 7... Nge7 {[%clk 0:02:49.9]} 8. Qe1 {[%clk 0:02:09.8]}
8... dxe4 {[%clk 0:02:42.2]} 9. dxe4 {[%clk 0:02:09.5]} 9... Nd4 {[%clk
0:02:42.3]} 10. Nxd4 {[%clk 0:02:07]} 10... cxd4 {[%clk 0:02:34.9]} 11. Nd1
{[%clk 0:02:06.8]} 11... Qc7 {[%clk 0:02:27.5]} 12. Bd3 {[%clk 0:02:06.7]} 12...
O-O {[%clk 0:02:23.9]} 13. Nf2 {[%clk 0:02:05.4]} 13... Nc6 {[%clk 0:02:20.7]}
14. a3 {[%clk 0:02:05.2]} 14... f6 {[%clk 0:01:55.2]} 15. Bd2 {[%clk 0:01:58.7]}
15... e5 {[%clk 0:01:50.3]} 16. f5 {[%clk 0:01:59]} 16... Ne7 {[%clk 0:01:47.7]}
17. Ng4 {[%clk 0:01:57.2]} 17... Bd7 {[%clk 0:01:34.8]} 18. h4 {[%clk
0:01:54.5]} 18... Rf7 {[%clk 0:01:29.4]} 19. Bh6 {[%clk 0:01:47.8]} 19... gxf5
{[%clk 0:01:23]} 20. exf5 {[%clk 0:01:45.9]} 20... Qb6 {[%clk 0:01:19]} 21. Bc4
{[%clk 0:01:39.5]} 21... Qxb2 {[%clk 0:01:12.3]} 22. Qg3 {[%clk 0:01:35.5]}
22... Nxf5 {[%clk 0:00:57.2]} 23. Rxf5 {[%clk 0:01:30.1]} 23... Bxf5 {[%clk
0:00:40.2]} 24. Bxf7+ {[%clk 0:01:14.8]} 24... Kxf7 {[%clk 0:00:31.4]} 25. Rf1
{[%clk 0:01:14]} 25... Bxg4 {[%clk 0:00:20.1]} 26. Bxg7 {[%clk 0:01:13]} 26...
Kxg7 {[%clk 0:00:17.1]} 27. Qxg4+ {[%clk 0:01:12.8]} 27... Kh8 {[%clk 0:00:17]}
28. Rxf6 {[%clk 0:01:01.8]} 28... Rg8 {[%clk 0:00:14.1]} 29. Qe4 {[%clk
0:00:57]} 29... Qc1+ {[%clk 0:00:12.9]} 30. Rf1 {[%clk 0:00:48.8]} 30... Qe3+
{[%clk 0:00:10]} 31. Qxe3 {[%clk 0:00:48.9]} 31... dxe3 {[%clk 0:00:10.9]} 32.
Rf3 {[%clk 0:00:49.6]} 32... Rc8 {[%clk 0:00:10.5]} 33. Rxe3 {[%clk 0:00:47.9]}
33... Rxc2 {[%clk 0:00:10.9]} 34. Rxe5 {[%clk 0:00:48.5]} 34... Rc3 {[%clk
0:00:07.1]} 35. Re7 {[%clk 0:00:43.9]} 35... Rxa3 {[%clk 0:00:06.1]} 36. Rxb7
{[%clk 0:00:44.5]} 36... a5 {[%clk 0:00:06.5]} 37. Kh2 {[%clk 0:00:41.5]} 37...
a4 {[%clk 0:00:05.8]} 38. Ra7 {[%clk 0:00:41.6]} 38... h6 {[%clk 0:00:04.6]} 39.
g3 {[%clk 0:00:40.1]} 39... Ra1 {[%clk 0:00:03.2]} 40. Kh3 {[%clk 0:00:40.5]}
40... a3 {[%clk 0:00:03.6]} 41. Kg4 {[%clk 0:00:40.8]} 41... a2 {[%clk
0:00:04.3]} 42. Ra6 {[%clk 0:00:11.4]} 42... Kg7 {[%clk 0:00:02.8]} 43. Ra7+
{[%clk 0:00:11.2]} 43... Kg6 {[%clk 0:00:03]} 44. h5+ {[%clk 0:00:10.3]} 44...
Kf6 {[%clk 0:00:03.1]} 45. Ra6+ {[%clk 0:00:10.7]} 45... Kg7 {[%clk 0:00:03.1]}
46. Rg6+ {[%clk 0:00:10.7]} 46... Kh7 {[%clk 0:00:03.1]} 47. Ra6 {[%clk
0:00:11.6]} 47... Kg7 {[%clk 0:00:03.2]} 48. Ra8 {[%clk 0:00:11.8]} 48... Kf7
{[%clk 0:00:03.1]} 49. Ra7+ {[%clk 0:00:08.6]} 49... Kf6 {[%clk 0:00:02.9]} 50.
Ra6+ {[%clk 0:00:04.2]} 50... Kg7 {[%clk 0:00:03.8]} 1/2-1/2

[Event "*** Titled Tuesday Blitz"]
[Site "Chess.com"]
[Date "2021.02.09"]
[Round "7"]
[White "FairChess_on_YouTube"]
[Black "XDPS"]
[Result "1-0"]
[WhiteElo "2944"]
[BlackElo "2741"]
[TimeControl "180+1"]
[EndTime "11:19:20 PST"]
[Termination "FairChess_on_YouTube won by resignation"]

1. e4 {[%clk 0:03:00.9]} 1... e5 {[%clk 0:02:59.9]} 2. Nf3 {[%clk 0:03:00.4]}
2... Nc6 {[%clk 0:03:00.2]} 3. Nc3 {[%clk 0:03:00]} 3... Nf6 {[%clk 0:03:00.2]}
4. Bb5 {[%clk 0:03:00.4]} 4... Bd6 {[%clk 0:02:56.3]} 5. O-O {[%clk 0:02:59.5]}
5... O-O {[%clk 0:02:56.3]} 6. d3 {[%clk 0:02:58.4]} 6... a6 {[%clk 0:02:51.3]}
7. Bxc6 {[%clk 0:02:56.1]} 7... dxc6 {[%clk 0:02:49.5]} 8. Ne2 {[%clk
0:02:56.6]} 8... c5 {[%clk 0:02:49.5]} 9. Ng3 {[%clk 0:02:56.4]} 9... Nd7 {[%clk
0:02:46.5]} 10. Nf5 {[%clk 0:02:53.9]} 10... Re8 {[%clk 0:02:45.6]} 11. Ng5
{[%clk 0:02:49.3]} 11... Nf8 {[%clk 0:02:38.4]} 12. Qh5 {[%clk 0:02:31.3]} 12...
Be6 {[%clk 0:01:54.9]} 13. Bd2 {[%clk 0:02:10.6]} 13... f6 {[%clk 0:01:34.1]}
14. Nxe6 {[%clk 0:01:59.1]} 14... Nxe6 {[%clk 0:01:31]} 15. Rae1 {[%clk
0:01:55.9]} 15... Qd7 {[%clk 0:01:29.4]} 16. Re3 {[%clk 0:01:52.9]} 16... Bf8
{[%clk 0:01:15.1]} 17. Rg3 {[%clk 0:01:49.6]} 17... g6 {[%clk 0:00:48.9]} 18.
Qg4 {[%clk 0:01:13.6]} 18... Kh8 {[%clk 0:00:37.8]} 19. Bc3 {[%clk 0:01:03]}
19... Qf7 {[%clk 0:00:36.1]} 20. Ne3 {[%clk 0:00:59.7]} 20... Bg7 {[%clk
0:00:30.5]} 21. h4 {[%clk 0:00:57.6]} 21... Nf4 {[%clk 0:00:26.7]} 22. b3 {[%clk
0:00:44.9]} 22... Rad8 {[%clk 0:00:26.4]} 23. Qd1 {[%clk 0:00:37.5]} 23... b6
{[%clk 0:00:22.1]} 24. Rf3 {[%clk 0:00:35.7]} 24... Qd7 {[%clk 0:00:21.1]} 25.
g3 {[%clk 0:00:32.4]} 25... Ne6 {[%clk 0:00:21.4]} 26. Kg2 {[%clk 0:00:26.9]}
26... c6 {[%clk 0:00:18.4]} 27. h5 {[%clk 0:00:20.7]} 27... Nd4 {[%clk
0:00:13.8]} 28. Bxd4 {[%clk 0:00:19.5]} 28... cxd4 {[%clk 0:00:10.8]} 29. Nc4
{[%clk 0:00:19.4]} 29... b5 {[%clk 0:00:10.5]} 30. Nd2 {[%clk 0:00:18.3]} 30...
Qe6 {[%clk 0:00:08.9]} 31. Rh1 {[%clk 0:00:17.5]} 31... Kg8 {[%clk 0:00:09.4]}
32. Qg1 {[%clk 0:00:17]} 32... Rd7 {[%clk 0:00:03.6]} 33. Qh2 {[%clk 0:00:17.2]}
33... g5 {[%clk 0:00:04.1]} 34. h6 {[%clk 0:00:17]} 34... Bf8 {[%clk 0:00:04.5]}
35. Qh5 {[%clk 0:00:16.4]} 35... Qf7 {[%clk 0:00:04.1]} 36. Qg4 {[%clk
0:00:16.1]} 36... Red8 {[%clk 0:00:03.5]} 37. Rf5 {[%clk 0:00:15.9]} 37... Qg6
{[%clk 0:00:03.7]} 38. Nf3 {[%clk 0:00:15.8]} 38... Bxh6 {[%clk 0:00:03.7]} 39.
Rxe5 {[%clk 0:00:12.2]} 39... fxe5 {[%clk 0:00:02.9]} 40. Nxe5 {[%clk
0:00:13.1]} 40... Qg7 {[%clk 0:00:03.3]} 41. Qe6+ {[%clk 0:00:11.3]} 41... Kf8
{[%clk 0:00:02.2]} 42. Rxh6 {[%clk 0:00:09.3]} 42... Re7 {[%clk 0:00:01.6]} 43.
Rf6+ {[%clk 0:00:09.4]} 43... Ke8 {[%clk 0:00:01.8]} 44. Qxc6+ {[%clk
0:00:09.8]} 44... Rdd7 {[%clk 0:00:02.4]} 45. Nxd7 {[%clk 0:00:09.3]} 45... Rxd7
{[%clk 0:00:03.3]} 46. e5 {[%clk 0:00:09]} 46... Kd8 {[%clk 0:00:02.3]} 47. e6
{[%clk 0:00:08.3]} 47... Rc7 {[%clk 0:00:02.2]} 48. Qd6+ {[%clk 0:00:08.6]}
48... Kc8 {[%clk 0:00:02.5]} 49. Rf8+ {[%clk 0:00:08.1]} 49... Kb7 {[%clk
0:00:03]} 50. Rf7 {[%clk 0:00:07.3]} 50... Rxf7 {[%clk 0:00:02.3]} 51. Qd5+
{[%clk 0:00:07.9]} 51... Kb6 {[%clk 0:00:02.6]} 52. exf7 {[%clk 0:00:08.5]}
52... Qf6 {[%clk 0:00:03.2]} 53. Qf3 {[%clk 0:00:08.3]} 1-0